Cogmind - Beta 14 @@@ ROGUE MODE // 2025.01.09 @ 18:14:54 Player: Doobadoop Result: Destroyed by C-17 Slicer with Blade Saw Performance ------------- Evolutions (2) 1000 Regions Visited (8) 1600 Robots Destroyed (47) 235 Value Destroyed (1254) 1254 Prototype IDs (0) 0 Alien Tech Used (0) 0 Bonus (500) 500 TOTAL SCORE: 4589 Bonus ------- Entered Garrisons 200 Aligned with FarCom 300 Cogmind --------- Core Integrity 0/550 Matter 278/300 Energy 99/100 System Corruption 1% Temperature Cool (0) Movement Core (50) Location -8/Garrison Parts ------- > --- POWER (2) -------- (None) > --- PROPULSION (3) --- (None) > --- UTILITY (4) ------ (None) > --- WEAPON (2) ------- (None) > --- INVENTORY (5) ---- Heat Sink Large Battery (200) Targeting Computer Peak State ------------ > --- POWER ------------ Ion Engine Nuclear Core > --- PROPULSION ------- Aluminum Leg Carbon-fiber Leg Carbon-fiber Leg > --- UTILITY ---------- Medium Storage Unit Large Battery Hardlight Generator System Shield > --- WEAPON ----------- Shotgun Improved Grenade Launcher > --- INVENTORY -------- Aluminum Leg Aluminum Leg Aluminum Leg Heat Sink Large Battery Targeting Computer Light EM Pulse Cannon Heavy Assault Rifle Great Maul [Rating: 25] Favorites ----------- Power Ion Engine Engine Ion Engine Power Core Nuclear Core Propulsion Aluminum Leg Treads Light Treads Leg Aluminum Leg Flight Unit Flight Unit Utility Large Battery Device Shield Generator Storage Large Battery Processor Advanced Visual Processing Unit Hackware System Shield Protection Medium Armor Plating Weapon Beam Cannon Energy Cannon Beam Cannon Ballistic Gun Heavy Assault Rifle Launcher Improved Grenade Launcher Impact Weapon Great Maul Build | -11 -10 -9 -9 -9 -8 -8 -8 -8 ------- Run | Yrd Mat Mat Min Exi Min Mat Sto Gar Slots Evolved 4 | . . 2 . . . 2 . . Power 1 | . . . . . . 1 . . Propulsion 1 | . . 1 . . . . . . Utility 2 | . . 1 . . . 1 . . Weapon . | . . . . . . . . . Parts Attached 61 | 9 10 10 10 1 . 2 8 11 Power 6 | 1 . 1 1 . . 1 1 1 Engine 5 | 1 . 1 1 . . 1 . 1 Core 1 | . . . . . . . 1 . Reactor . | . . . . . . . . . Propulsion 25 | 4 4 3 8 . . . 2 4 Treads 4 | 2 2 . . . . . . . Leg 18 | 2 2 3 5 . . . 2 4 Wheel . | . . . . . . . . . Hover . | . . . . . . . . . Flight 3 | . . . 3 . . . . . Utility 14 | 1 5 2 1 1 . 1 2 1 Device 2 | . . . 1 . . . 1 . Storage 9 | 1 5 1 . 1 . 1 . . Processor 1 | . . . . . . . . 1 Hackware 1 | . . . . . . . 1 . Protection 1 | . . 1 . . . . . . Artifact . | . . . . . . . . . Weapon 16 | 3 1 4 . . . . 3 5 Energy Gun . | . . . . . . . . . Energy Cannon 2 | . . 1 . . . . . 1 Ballistic Gun 8 | 3 . 3 . . . . 1 1 Ballistic Cannon . | . . . . . . . . . Launcher 3 | . 1 . . . . . 2 . Special Weapon . | . . . . . . . . . Impact Weapon 3 | . . . . . . . . 3 Slashing Weapon . | . . . . . . . . . Piercing Weapon . | . . . . . . . . . Special Melee Weapon . | . . . . . . . . . Unidentified Prototypes . | . . . . . . . . . Parts Lost 15 | . . 3 1 . . . . 11 Power 3 | . . 1 . . . . . 2 Propulsion 6 | . . 1 . . . . . 5 Utility 1 | . . . 1 . . . . . Weapon 5 | . . 1 . . . . . 4 Highest Loss Streak 3 | . . 2 1 . . . . 3 To Critical Strikes . | . . . . . . . . . Average Slot Usage (%) 94 | . 97 88 99 100 100 91 95 86 Engine 11 | . 14 10 11 11 11 18 16 5 Core 1 | . . . . . . . 1 3 Leg 29 | . 27 29 32 33 33 27 27 25 Device 6 | . . . 10 11 11 9 8 3 Storage 20 | . 25 19 22 22 22 19 18 17 Processor 1 | . . . . . . . . 5 Hackware 2 | . . . . . . . 5 9 Protection 1 | . . 10 . . . . . . Energy Cannon 7 | . . 8 11 11 11 9 8 2 Ballistic Gun 9 | . 14 9 11 11 11 9 1 6 Launcher 4 | . 13 1 . . . . 7 6 Peak Build Rating 25 | 6 7 11 11 11 11 13 25 25 Average Rating 13 | 5 6 9 10 11 11 12 18 21 On Entrance 10 | . 6 7 11 11 11 11 13 25 Naked Turns 3 | . . . . . . . . 3 Heaviest Build 39 | 13 17 26 21 26 26 29 39 39 Greatest Support 43 | 40 20 30 30 30 30 30 40 43 Greatest Overweight (x) 4 | . . 1 . . . . . 4 Average Overweight (x) . | . . . . . . . . . Largest Inventory Capacity 25 | 8 25 8 8 10 10 20 10 10 Average Capacity 8 | 6 8 8 8 8 10 10 10 9 Most Carried 10 | 6 8 8 8 8 8 8 10 10 Average Carried 6 | 3 6 6 6 6 7 7 9 7 Final Capacity 10 | 8 8 8 8 10 10 10 10 5 Final Carried 9 | 6 5 7 6 7 8 8 9 3 Class Distribution -------------------- 73% | Scavenger-Mutant 26% | Mutant Dominant Class ---------------- Mutant | -10/Materials Scavenger-Mutant | -9/Materials Scavenger-Mutant | -9/Mines Scavenger-Mutant | -9/Exiles Scavenger-Mutant | -8/Mines Scavenger-Mutant | -8/Materials Scavenger-Mutant | -8/Storage Scavenger-Mutant | -8/Garrison Resources | -11 -10 -9 -9 -9 -8 -8 -8 -8 ----------- Run | Yrd Mat Mat Min Exi Min Mat Sto Gar Matter Collected 1242 | 234 248 295 148 . 31 . 86 200 Remotely . | . . . . . . . . . Salvage Created 1521 | . 240 403 261 . 35 . 210 372 Parts 86 | . 14 28 9 . 1 . 12 22 Haulers Intercepted . | . . . . . . . . . Recyclers Shooed 2 | . . . 1 . . . 1 . Parts Field Recycled . | . . . . . . . . . Retrieved Matter . | . . . . . . . . . Parts Self-Destructed . | . . . . . . . . . Prevented . | . . . . . . . . . Kills | -11 -10 -9 -9 -9 -8 -8 -8 -8 ------- Run | Yrd Mat Mat Min Exi Min Mat Sto Gar Combat Hostiles Destroyed 37 | . 7 11 6 . 2 . 3 8 Guns 16 | . 4 7 2 . 1 . . 2 Cannons 10 | . . 4 4 . 1 . . 1 AOE 9 | . 3 . . . . . 2 4 Classes Destroyed 11 | . 4 3 . . . . 2 2 Worker 1 | . . . . . . . 1 . Builder 3 | . 2 . . . . . 1 . Recycler 4 | . 1 1 1 . . . 1 . Operator 1 | . . 1 . . . . . . Watcher 1 | . . 1 . . . . . . Swarmer 13 | . 3 5 3 . 2 . . . Grunt 14 | . 4 4 3 . . . 1 2 Brawler 4 | . . . . . . . . 4 Sentry 3 | . . 2 . . . . 1 . Specialist 2 | . . . . . . . . 2 Hunter 1 | . . . . . . . 1 . Best Kill Streak 6 | . 4 5 3 . 2 . 4 6 Combat Bots Only 6 | . 3 4 3 . 2 . 1 6 Max Kills in Single Turn 4 | . 3 2 1 . 1 . 2 4 Gunslinging . | . . . . . . . . . Exploded 4 | . 1 . . . . . 1 4 Melee . | . . . . . . . . . Uniques/NPCs Destroyed . | . . . . . . . . . Combat | -11 -10 -9 -9 -9 -8 -8 -8 -8 -------- Run | Yrd Mat Mat Min Exi Min Mat Sto Gar Hostile Shots Fired 262 | . 25 75 27 . 14 . 20 101 Missed 81 | . 4 25 6 . 4 . 8 34 Damage Taken 2631 | . 247 532 202 . 54 . 190 1406 Core 746 | . 87 50 47 . . . 50 512 Absorbed by Shields 137 | . . . 42 . 24 . 71 . Core Remaining (%) 80 | 100 65 . . . 75 . . . Volleys Fired 119 | . 21 43 17 . 7 . 10 21 Largest 2 | . 2 2 2 . 2 . 2 2 Hottest 96 | . 50 83 83 . 83 . 96 59 Shots Fired 190 | . 29 73 34 . 14 . 17 23 Gun 95 | . 21 40 17 . 7 . . 10 Cannon 72 | . . 27 17 . 7 . 10 11 Launcher 23 | . 8 6 . . . . 7 2 Special . | . . . . . . . . . Kinetic 95 | . 21 40 17 . 7 . . 10 Thermal 61 | . . 27 17 . 7 . 10 . Explosive 23 | . 8 6 . . . . 7 2 Electromagnetic 11 | . . . . . . . . 11 Robot Hit Streak 14 | . 4 10 3 . 1 . 4 14 Robot Miss Streak 5 | . 3 2 2 . 3 . 3 5 Penetration Max . | . . . . . . . . . Secondary Targets . | . . . . . . . . . Shots Hit Robots 119 | . 17 47 19 . 5 . 10 21 Core Hits 67 | . 15 19 8 . 2 . 11 12 Critical Kills 2 | . . 1 . . . . 1 . Critical Parts Destroyed 1 | . . . . . . . . 1 Critical Strikes 3 | . . 1 . . . . 1 1 Meltdown 1 | . . . . . . . 1 . Destroy 1 | . . 1 . . . . . . Smash 1 | . . . . . . . . 1 Melee Attacks 5 | . . . . . . . . 5 Impact 5 | . . . . . . . . 5 Slashing . | . . . . . . . . . Piercing . | . . . . . . . . . Sneak Attacks . | . . . . . . . . . Combat Hostiles . | . . . . . . . . . Follow-up Attacks . | . . . . . . . . . Damage Inflicted 3128 | . 496 841 340 . 81 1 618 751 Guns 833 | . 93 419 137 . 46 . . 138 Cannons 839 | . . 316 174 . 35 . 123 191 Explosions 1298 | . 403 106 . . . . 495 294 Melee 125 | . . . . . . . . 125 Ramming 33 | . . . 29 . . 1 . 3 Kinetic 833 | . 93 419 137 . 46 . . 138 Thermal 648 | . . 316 174 . 35 . 123 . Explosive 1298 | . 403 106 . . . . 495 294 Electromagnetic 191 | . . . . . . . . 191 Impact 125 | . . . . . . . . 125 Slashing . | . . . . . . . . . Piercing . | . . . . . . . . . Highest Corruption 1 | . 1 . . . . . . 1 Average Corruption 1 | . 1 . . . . . . 1 Corruption Purged . | . . . . . . . . . Corruption Blocked . | . . . . . . . . . Effects 2 | . . . . . . . . 2 Heat Flow Errors 1 | . . . . . . . . 1 Energy Discharges 1 | . . . . . . . . 1 Overload Shots . | . . . . . . . . . Overflow Damage 52 | . . . . . . . . 52 Projectiles . | . . . . . . . . . Explosions . | . . . . . . . . . Melee 52 | . . . . . . . . 52 Knockbacks 3 | . . . 1 . . . . 2 Impact 3 | . . . 1 . . . . 2 Kinetic . | . . . . . . . . . Secondary . | . . . . . . . . . Self-Inflicted Damage 42 | . 41 . . . . . . 1 Shots 2 | . 2 . . . . . . . Rammed 2 | . . . . . . . . 2 Targets Rammed 7 | . . . 4 . . 1 . 2 Kicked 5 | . . . 4 . . 1 . . Crushed . | . . . . . . . . . Highest Temperature 199 | . 26 186 199 . 84 . 132 186 Average Temperature 62 | . 11 59 89 . 42 . 45 76 Received Heat Transfer 600 | . 45 147 111 . . . 18 279 Siege Activations . | . . . . . . . . . Robots Corrupted 1 | . . . . . . . . 1 Combat Hostiles 1 | . . . . . . . . 1 Parts Fried 2 | . . . . . . . . 2 Impact Corruptions 1 | . . . . . . . . 1 Robots Melted 1 | . . . . . . . 1 . Combat Hostiles 1 | . . . . . . . 1 . Parts Melted 5 | . . 3 . . . . 2 . Heat Transferred 1369 | . . 666 370 . 74 . 259 . Parts Sabotaged . | . . . . . . . . . Parts Stolen . | . . . . . . . . . Parts Stripped . | . . . . . . . . . Power Chain Reactions . | . . . . . . . . . Alert | -11 -10 -9 -9 -9 -8 -8 -8 -8 ------- Run | Yrd Mat Mat Min Exi Min Mat Sto Gar Peak Influence 380 | . 214 380 252 . 40 15 109 147 Initial 87 | . . 35 87 . . . 5 38 Average 84 | . 40 216 209 . 8 5 38 88 Maximum Alert Level 1 | . 1 1 1 . . . . . Low Security (%) 85 | 100 94 40 47 . 100 100 100 100 Level 1 14 | . 5 59 52 . . . . . Level 2 . | . . . . . . . . . Level 3 . | . . . . . . . . . Level 4 . | . . . . . . . . . Level 5 . | . . . . . . . . . High Security . | . . . . . . . . . Max Security . | . . . . . . . . . Squads Dispatched 4 | . 1 2 . . . . 1 . Investigation 1 | . 1 . . . . . . . Extermination . | . . . . . . . . . Reinforcement 3 | . . 2 . . . . 1 . Assault . | . . . . . . . . . Garrison . | . . . . . . . . . Intercept . | . . . . . . . . . Searches Triggered . | . . . . . . . . . Construction Impeded 1 | . . . . . . . 1 . Haulers Reinforced . | . . . . . . . . . Active Scanning Responses . | . . . . . . . . . Cargo Convoy Interrupts . | . . . . . . . . . Stealth | -11 -10 -9 -9 -9 -8 -8 -8 -8 --------- Run | Yrd Mat Mat Min Exi Min Mat Sto Gar Distress Signals 3 | . . 2 . . . 1 . . Communications Jammed . | . . . . . . . . . Distress Signals . | . . . . . . . . . Times Spotted 55 | . 9 19 5 . 3 1 3 15 Peak Tracking Total 7 | . 3 7 3 . 3 2 1 6 Tactical Retreats 3 | . . 1 . . . 1 . 1 Traps | -11 -10 -9 -9 -9 -8 -8 -8 -8 ------- Run | Yrd Mat Mat Min Exi Min Mat Sto Gar Traps Triggered 3 | . . . . . . . 1 2 Indirectly . | . . . . . . . . . Trap Hack Attempts . | . . . . . . . . . Triggered . | . . . . . . . . . Disarmed . | . . . . . . . . . Reprogrammed . | . . . . . . . . . Reused . | . . . . . . . . . Traps Extracted . | . . . . . . . . . Installed . | . . . . . . . . . Triggered . | . . . . . . . . . Most Traps Carried 1 | . . . . . . . . 1 Machines | -11 -10 -9 -9 -9 -8 -8 -8 -8 ---------- Run | Yrd Mat Mat Min Exi Min Mat Sto Gar Machines Disabled 5 | . 3 . 2 . . . . . Max in Single Turn 2 | . 2 . 1 . . . . . Machines Repaired . | . . . . . . . . . Machines Dismantled . | . . . . . . . . . Machines Sabotaged . | . . . . . . . . . Overloaded Fab Kills . | . . . . . . . . . Hacking | -11 -10 -9 -9 -9 -8 -8 -8 -8 --------- Run | Yrd Mat Mat Min Exi Min Mat Sto Gar Machines Accessed 7 | . 1 . . 3 . . 3 . Terminals 2 | . . . . . . . 2 . Fabricators . | . . . . . . . . . Repair Stations 1 | . 1 . . . . . . . Recycling Units . | . . . . . . . . . Scanalyzers . | . . . . . . . . . Garrison Access 1 | . . . . . . . 1 . Total Hacks 34 | . 4 . . 26 . . 4 . Successful 31 | . 2 . . 26 . . 3 . Failed 3 | . 2 . . . . . 1 . Catastrophic . | . . . . . . . . . Database Lockouts . | . . . . . . . . . Manual 2 | . . . 1 1 . . . . Terminals 2 | . . . . . . . 2 . Fabricators . | . . . . . . . . . Repair Stations 4 | . 4 . . . . . . . Recycling Units . | . . . . . . . . . Scanalyzers . | . . . . . . . . . Garrison Access 2 | . . . . . . . 2 . Terminal Hacks 28 | . . . . 26 . . 2 . Record 26 | . . . . 26 . . . . Alert Level 2 | . . . . . . . 2 . Fabricator Hacks . | . . . . . . . . . Repair Station Hacks 2 | . 2 . . . . . . . Scan Component 1 | . 1 . . . . . . . Repair 1 | . 1 . . . . . . . Recycling Unit Hacks . | . . . . . . . . . Scanalyzer . | . . . . . . . . . Garrison Access Hacks 1 | . . . . . . . 1 . Unlock Access 1 | . . . . . . . 1 . Unauthorized Hacks . | . . . . . . . . . Terminals . | . . . . . . . . . Fabricators . | . . . . . . . . . Repair Stations . | . . . . . . . . . Recycling Units . | . . . . . . . . . Scanalyzers . | . . . . . . . . . Garrison Access . | . . . . . . . . . Data Cores Recovered . | . . . . . . . . . Used . | . . . . . . . . . Hacking Detections 2 | . 1 . . . . . 1 . Full Trace Events 1 | . 1 . . . . . . . Feedback Events 1 | . 1 . . . . . . . Corruption 1 | . 1 . . . . . . . Feedback Blocked . | . . . . . . . . . Robot Schematics Acquired . | . . . . . . . . . Robots Built . | . . . . . . . . . Authchips . | . . . . . . . . . Time . | . . . . . . . . . Total Robot Build Rating . | . . . . . . . . . Part Schematics Acquired . | . . . . . . . . . Parts Built . | . . . . . . . . . Authchips . | . . . . . . . . . Time . | . . . . . . . . . Total Part Build Rating . | . . . . . . . . . Parts Repaired . | . . . . . . . . . Time 38 | . 38 . . . . . . . Parts Recycled . | . . . . . . . . . Recycled Matter . | . . . . . . . . . Retrieved Matter . | . . . . . . . . . Retrieved Components . | . . . . . . . . . Parts Scanalyzed . | . . . . . . . . . Part Schematics Acquired . | . . . . . . . . . Parts Damaged . | . . . . . . . . . Bothacking | -11 -10 -9 -9 -9 -8 -8 -8 -8 ------------ Run | Yrd Mat Mat Min Exi Min Mat Sto Gar Used RIF Installer . | . . . . . . . . . Robots Hacked . | . . . . . . . . . Non-combat . | . . . . . . . . . Combat . | . . . . . . . . . Robot Hacks Applied . | . . . . . . . . . Relay Couplers Released . | . . . . . . . . . Fabnet Peak Effective % . | . . . . . . . . . Robots Rewired . | . . . . . . . . . Allies Hacked . | . . . . . . . . . Hacks Repelled . | . . . . . . . . . Allies | -11 -10 -9 -9 -9 -8 -8 -8 -8 -------- Run | Yrd Mat Mat Min Exi Min Mat Sto Gar Total Allies . | . . . . . . . . . Largest Group . | . . . . . . . . . Highest-Rated Group . | . . . . . . . . . Highest-Rated Ally . | . . . . . . . . . Total Orders . | . . . . . . . . . Ally Attacks . | . . . . . . . . . Total Damage . | . . . . . . . . . Kills . | . . . . . . . . . Allies Corrupted . | . . . . . . . . . Allies Melted . | . . . . . . . . . Intel | -11 -10 -9 -9 -9 -8 -8 -8 -8 ------- Run | Yrd Mat Mat Min Exi Min Mat Sto Gar Robot Analysis Total . | . . . . . . . . . Derelict Logs Recovered 1 | . . . 1 . . . . . Drone Launches . | . . . . . . . . . Drone Recoveries . | . . . . . . . . . Exploration | -11 -10 -9 -9 -9 -8 -8 -8 -8 ------------- Run | Yrd Mat Mat Min Exi Min Mat Sto Gar Turns Passed 4102 | 193 477 456 336 748 447 57 609 779 Spaces Moved 2970 | 135 332 260 211 620 355 44 454 559 Core 17 | 6 . . . . . . . 11 Treads 30 | 30 . . . . . . . . Legs 2923 | 99 332 260 211 620 355 44 454 548 Wheels . | . . . . . . . . . Hover . | . . . . . . . . . Flight . | . . . . . . . . . Fastest Speed 50 | 50 120 120 120 120 120 120 120 50 Average Speed 120 | 125 120 121 120 120 120 120 120 120 Slowest Speed 250 | 160 120 190 120 120 120 120 120 250 Overloaded Moves . | . . . . . . . . . Propulsion Burnouts . | . . . . . . . . . Robots Hopped . | . . . . . . . . . Cave-ins Triggered . | . . . . . . . . . Exploration Rate (%) 36 | 6 38 20 28 91 51 5 53 39 Regions Visited 8 Branch Regions 4 Pre-discovered Areas 1 | . . . 1 . . . . . Known Exits Taken 1 | . . . . . . . 1 . Unknown Exits Taken 7 | 1 1 1 1 1 1 1 . . Scrap Searched 3 | . . . 1 . 2 . . . Spaces Dug . | . . . . . . . . . Terrain Destroyed 130 | . 31 34 . . . . 41 24 Melee . | . . . . . . . . . Projectile . | . . . . . . . . . AOE 130 | . 31 34 . . . . 41 24 Terrain Rammed . | . . . . . . . . . Walls Destroyed . | . . . . . . . . . Machines Disabled . | . . . . . . . . . Actions | -11 -10 -9 -9 -9 -8 -8 -8 -8 --------- Run | Yrd Mat Mat Min Exi Min Mat Sto Gar Total 3299 | 154 385 334 260 624 362 48 500 632 Wait 59 | 3 6 5 . . . . 19 26 Move 2960 | 134 331 259 210 619 354 43 453 557 Hop . | . . . . . . . . . Pick Up 45 | 8 8 9 9 2 1 1 3 4 Fast Attach 20 | 4 2 5 1 . . . 5 3 Attach 18 | 2 . 4 2 . . 2 . 8 Detach 2 | . . 1 . . . 1 . . Swap 23 | 3 8 1 7 1 . . 3 . Drop 38 | . 9 7 10 1 . . 7 4 Fire 119 | . 21 43 17 . 7 . 10 21 Melee 5 | . . . . . . . . 5 Ram 2 | . . . . . . . . 2 Kick 5 | . . . 4 . . 1 . . Crush . | . . . . . . . . . Escape Stasis . | . . . . . . . . . Rewire 3 | . . . . 1 . . . 2 Trap . | . . . . . . . . . Miscellaneous . | . . . . . . . . . Route ------- -11/Scrapyard -10/Materials -9/Materials -9/Mines -9/Exiles -8/Mines -8/Materials (discovered 2 exits: *Sto x2) -8/Storage -8/Garrison (discovered 1 exit: [*Fac]) History --------- Turn | Location | Event 4 | -11/Scrapyard | Discovered new exit (range 15) 194 | -11/Scrapyard | Entered Materials 317 | -10/Materials | Build established: Mutant 512 | -10/Materials | Discovered new exit (range 7) 671 | -10/Materials | Entered another Materials area 671 | -9/Materials | Evolved 2 slots: Propulsion x1, Utility x1 949 | -9/Materials | Discovered new exit (range 15) 1127 | -9/Materials | Entered Mines 1134 | -9/Mines | Build established: Scavenger-Mutant 1255 | -9/Mines | Learned location of Zion (-6) 1455 | -9/Mines | Deemed a non-threat by the Exiles lab entrance 1456 | -9/Mines | Discovered new exit (range 5) 1463 | -9/Mines | Entered Exiles 1503 | -9/Exiles | Met 8R-AWN 1531 | -9/Exiles | Met EX-HEX 1612 | -9/Exiles | Met EX-BIN 1644 | -9/Exiles | Aligned with FarCom system 1646 | -9/Exiles | Given EX-Vault access code 1808 | -9/Exiles | Met EX-DEC 1935 | -9/Exiles | Visited The Gauntlet 2188 | -9/Exiles | Discovered new exit (range 14) 2211 | -9/Exiles | Entered Mines 2603 | -8/Mines | Discovered new exit (range 15) 2658 | -8/Mines | Entered Materials 2658 | -8/Materials | Evolved 2 slots: Power x1, Utility x1 2693 | -8/Materials | Discovered new exit (range 9) 2698 | -8/Materials | Discovered new exit (range 15) 2715 | -8/Materials | Entered Storage 3320 | -8/Storage | Identified exit to Garrison 3324 | -8/Storage | Entered Garrison 3788 | -8/Garrison | Triggered checkpoint 3854 | -8/Garrison | Triggered checkpoint 3894 | -8/Garrison | Discovered new exit (range 14) 3912 | -8/Garrison | Attempted to access garrison exit controls, blocked by remote lockdown 4082 | -8/Garrison | Core integrity fell below 50% 4096 | -8/Garrison | Core integrity fell below 20% 4103 | -8/Garrison | Destroyed by C-17 Slicer with Blade Saw Last Messages --------------- 04069_ Rnf. Ion Engine severed. 04072_ Great Maul severed. 04078_ Hvy. Assault Rifle destroyed. 04080_ Acquired Great Maul. 04082_ C-17 Slicer suffers critical hit (Smash). 04082_ Destroyed Surge Thruster. 04082_ C-17 Slicer system corrupted by crushing effect. 04082_ C-17 Slicer knocked back. 04084_ Great Maul severed. 04085_ Acquired Great Maul. 04085_ Lrg. Battery severed. 04087_ Extracted 15 energy. 04088_ Extracted 1 energy. 04088_ Great Maul severed. 04092_ Adv. Visual Processing Unit severed. 04096_ Slammed into C-17 Slicer. 04098_ Dropped Med. Storage Unit. 04099_ Slammed into C-17 Slicer. 04100_ System Shield severed. Map ----- +----------------------------------------------------+ | # #?????????????????????????????????????????????? | | # ###########???????????????????????????????????? | | #???????????????????????????????????? | | # #???????????????????????????????????? | | # ########^^#???????????????????????????????????? | | # #??????# #???????????????????????????????????? | | # #??????# #??????? ??????????????????????????? | | # #??????# #??????# #?????????????????????????? | | # #??????# #??????# #?????????????????????????? | | # #??????# #??????# #?????????????????????????? | | # #??????# #??sss?# #?????????????????????????? | | # #?????## ##""""## ##????????????????????????? | | # ####### #####????????????????????? | | # ?????????????????? | | # ?????????????????? | | ########## ## ## ######???????????????????? | | ???????### ## ## #????????????????????????? | | ???????# "????????????????????????? | | ???????# "g???????????????????????? | | ???????# "g####???????????????????? | | ???????# "?? #???????????????????? | | ???????### ## ## #??# #???????????????????? | | ########## ## ## #### #######?????????????? | | ^^ ! #?????????????? | | ^ c *c #?????????????? | | ######## @c ==!/ #?????????????? | | #??????## ## ## ##### ### #?????????????? | | #???????# ## #???????# #?#g #?????????????? | | #???????# #######???????# #?# gT#????????????? | | #???????# #?????????????# #?# g ##????????????? | | #???????# #?????????????# #?# #?????????????? | | #???????# #?????????????# #?# #?????????????? | | ######### #?????????????# #?# #?????????????? | | #????????????? ?+ #?????????????? | | #????????????? ?+ #?????????????? | | #############?????????????###?# #?????????????? | | #?????????????????????????????? #?????????????? | | #?????????????????????????????? #?????????????? | | #?????????????????????????????? #?????????????? | | #####?????????????????????????? #?????????????? | | #?????????????????????????? #?????????????? | | #### #?????????????????????????? #?????????????? | | ???? #?????????????????????????? #?????????????? | | ?????#?????????????????????????? ??????????????? | | ???????????????????????????????? ??????????????? | | ?????????????????????????????????????????????????? | | ?????????????????????????????????????????????????? | | ?????????????????????????????????????????????????? | | ?????????????????????????????????????????????????? | | ?????????????????????????????????????????????????? | +----------------------------------------------------+ Best States ------------- Heat Dissipation 31 Energy Generation 19 Energy Capacity 590 Matter Stores 300 Matter Capacity 300 Sight Range 20 Terrain Scan Density 10 Armor Coverage 225 Evasion (%) 55 Recoil Reduction 2 Defensive Hacking 10 Item Schematics ----------------- None Robot Schematics ------------------ None Fabricated ------------ Nothing Alien Tech Used ----------------- None Achievements -------------- None Challenges ------------ None Game ------ Seed EnergyAccelerationShredder Manual? 0 Play Time 00:42:09 Cumulative 4.7 hours Start 2025.01.09 @ 17:27:37 End 2025.01.09 @ 18:14:54 Sessions 1 Manual Loads 0 Difficulty Rogue Special Mode None Game No. 4 Rogue 2 Adventurer 2 Explorer 0 Win Type - Total 0 Types 0/0/0/0/0/0/0/0/0 Lore% 4 Gallery% 10 Achievement% 10 Wizard Run 0 Options --------- Layout 1 ASCII 0 Keyboard 0 Movement Arrows Keybinds 0 Fullscreen 1 Font 32/SmallcapsGlow Map View 50x35 Zoom Use 0% Tactical HUD 1 Map Filters NONE Filters NONE Steam 1 RUN: dce1cf91-25f8-495b-a3c4-0c093fc997ec